[Event "*** Titled Tuesday Blitz"]
[Site "Chess.com"]
[Date "2019.02.05"]
[Round "4"]
[White "Caterpiller35"]
[Black "dmosesov"]
[Result "0-1"]
[WhiteElo "2233"]
[BlackElo "2359"]
[TimeControl "180+2"]
[EndTime "13:48:30 PST"]
[Termination "dmosesov won by resignation"]

1. d4 {[%clk 0:03:01.9]} 1... Nf6 {[%clk 0:03:00.4]} 2. Bg5 {[%clk 0:03:02.5]}
2... Ne4 {[%clk 0:03:00.8]} 3. Bf4 {[%clk 0:02:57.8]} 3... c5 {[%clk 0:03:00.9]}
4. f3 {[%clk 0:02:58.8]} 4... Qa5+ {[%clk 0:03:01.8]} 5. c3 {[%clk 0:02:59.6]}
5... Nf6 {[%clk 0:03:03.4]} 6. Nd2 {[%clk 0:03:01.1]} 6... cxd4 {[%clk
0:03:04.5]} 7. Nb3 {[%clk 0:03:02.6]} 7... Qd8 {[%clk 0:03:06.1]} 8. cxd4 {[%clk
0:03:03]} 8... d5 {[%clk 0:03:06.9]} 9. e3 {[%clk 0:03:04.2]} 9... Nc6 {[%clk
0:03:07.1]} 10. g4 {[%clk 0:03:04.6]} 10... e6 {[%clk 0:02:53.6]} 11. Rc1 {[%clk
0:03:03.9]} 11... Bb4+ {[%clk 0:02:53.6]} 12. Kf2 {[%clk 0:03:04.9]} 12... O-O
{[%clk 0:02:48.6]} 13. Bd3 {[%clk 0:03:05.7]} 13... Re8 {[%clk 0:02:43.1]} 14.
Ne2 {[%clk 0:02:52.4]} 14... e5 {[%clk 0:02:40.8]} 15. dxe5 {[%clk 0:02:52.1]}
15... Nxe5 {[%clk 0:02:42.7]} 16. Bb1 {[%clk 0:02:29.5]} 16... Nexg4+ {[%clk
0:01:05.2]} 17. fxg4 {[%clk 0:02:29.2]} 17... Nxg4+ {[%clk 0:01:07]} 18. Kg3
{[%clk 0:02:29.1]} 18... g5 {[%clk 0:01:02.8]} 19. Qd3 {[%clk 0:02:24.2]} 19...
gxf4+ {[%clk 0:01:01.6]} 20. Kg2 {[%clk 0:02:13.8]} 20... Qh4 {[%clk 0:00:48]}
21. Qxh7+ {[%clk 0:01:59]} 21... Qxh7 {[%clk 0:00:45.6]} 22. Bxh7+ {[%clk
0:02:00.9]} 22... Kxh7 {[%clk 0:00:47.5]} 23. Nxf4 {[%clk 0:02:02]} 23... Nxe3+
{[%clk 0:00:47.4]} 24. Kf3 {[%clk 0:02:03.1]} 24... Bg4+ {[%clk 0:00:41.1]} 25.
Kg3 {[%clk 0:02:03.7]} 25... Bd7 {[%clk 0:00:41.9]} 26. Rc7 {[%clk 0:02:01.7]}
26... Nf5+ {[%clk 0:00:37.9]} 27. Kf3 {[%clk 0:01:59.6]} 27... Rad8 {[%clk
0:00:29]} 28. Rxb7 {[%clk 0:01:51.3]} 28... Bd6 {[%clk 0:00:30]} 29. Nxd5 {[%clk
0:01:49.4]} 29... Bc6 {[%clk 0:00:21.1]} 30. Rxf7+ {[%clk 0:01:47.5]} 30... Ng7
{[%clk 0:00:22.8]} 31. Rd1 {[%clk 0:01:42.8]} 31... Bb8 {[%clk 0:00:21.9]} 32.
Rg1 {[%clk 0:01:23.1]} 32... Bxd5+ {[%clk 0:00:22.4]} 0-1

[Event "*** Titled Tuesday Blitz"]
[Site "Chess.com"]
[Date "2019.02.05"]
[Round "4"]
[White "Agent-JL"]
[Black "volcanoexplorer"]
[Result "0-1"]
[WhiteElo "2238"]
[BlackElo "2362"]
[TimeControl "180+2"]
[EndTime "13:48:31 PST"]
[Termination "volcanoexplorer won by resignation"]

1. e4 {[%clk 0:03:01.9]} 1... e5 {[%clk 0:03:00.5]} 2. Nf3 {[%clk 0:02:56]} 2...
Nc6 {[%clk 0:03:01.6]} 3. Nc3 {[%clk 0:02:55.5]} 3... Nf6 {[%clk 0:03:02.1]} 4.
Bc4 {[%clk 0:02:54.7]} 4... Be7 {[%clk 0:02:57.1]} 5. O-O {[%clk 0:02:54.5]}
5... O-O {[%clk 0:02:57.4]} 6. d3 {[%clk 0:02:55.9]} 6... d6 {[%clk 0:02:56.1]}
7. h3 {[%clk 0:02:57.5]} 7... Na5 {[%clk 0:02:56.4]} 8. Be3 {[%clk 0:02:55.2]}
8... Nxc4 {[%clk 0:02:56.6]} 9. dxc4 {[%clk 0:02:57.1]} 9... Be6 {[%clk
0:02:57]} 10. Qd3 {[%clk 0:02:54.6]} 10... h6 {[%clk 0:02:57]} 11. Rad1 {[%clk
0:02:47.2]} 11... Nd7 {[%clk 0:02:52.9]} 12. Rd2 {[%clk 0:02:38.3]} 12... c6
{[%clk 0:02:42]} 13. Rfd1 {[%clk 0:02:35.1]} 13... f5 {[%clk 0:02:41]} 14. exf5
{[%clk 0:02:33]} 14... Bxf5 {[%clk 0:02:41.6]} 15. Qe2 {[%clk 0:02:30.2]} 15...
Qe8 {[%clk 0:02:37.3]} 16. Re1 {[%clk 0:02:18.6]} 16... Qg6 {[%clk 0:02:37.9]}
17. Kh2 {[%clk 0:02:14.7]} 17... Rf7 {[%clk 0:01:59.7]} 18. Ng1 {[%clk
0:01:57.3]} 18... Raf8 {[%clk 0:01:50.6]} 19. f4 {[%clk 0:01:49.5]} 19... Bh4
{[%clk 0:01:44.9]} 20. Red1 {[%clk 0:01:42]} 20... Bg3+ {[%clk 0:01:43.1]} 21.
Kh1 {[%clk 0:01:41.1]} 21... exf4 {[%clk 0:01:40]} 22. Rxd6 {[%clk 0:01:42]}
22... Nf6 {[%clk 0:01:37.8]} 23. Bc1 {[%clk 0:01:13]} 23... f3 {[%clk
0:01:33.8]} 24. Nxf3 {[%clk 0:01:05]} 24... Bxd6 {[%clk 0:01:34.1]} 25. Rxd6
{[%clk 0:01:06.4]} 25... Qh7 {[%clk 0:01:22.2]} 26. c5 {[%clk 0:00:56.6]} 26...
Bxc2 {[%clk 0:01:21]} 27. Qc4 {[%clk 0:00:36]} 27... Nd5 {[%clk 0:01:14.7]} 28.
Nxd5 {[%clk 0:00:31.6]} 28... cxd5 {[%clk 0:01:16.6]} 29. Qxd5 {[%clk
0:00:32.3]} 29... Be4 {[%clk 0:01:16.8]} 30. Qb3 {[%clk 0:00:28.3]} 30... Bxf3
{[%clk 0:01:17.6]} 31. gxf3 {[%clk 0:00:30.2]} 31... Qf5 {[%clk 0:01:18.4]} 32.
Kg2 {[%clk 0:00:21.5]} 32... Qxc5 {[%clk 0:01:18.1]} 33. Qd1 {[%clk 0:00:21.9]}
33... Rxf3 {[%clk 0:01:15.5]} 34. Qxf3 {[%clk 0:00:16.1]} 34... Rxf3 {[%clk
0:01:15.2]} 0-1

[Event "*** Titled Tuesday Blitz"]
[Site "Chess.com"]
[Date "2019.02.05"]
[Round "4"]
[White "26andrej26"]
[Black "ITheOnlyME"]
[Result "1-0"]
[WhiteElo "2416"]
[BlackElo "2266"]
[TimeControl "180+2"]
[EndTime "13:48:37 PST"]
[Termination "26andrej26 won by resignation"]

1. e4 {[%clk 0:03:01.9]} 1... c5 {[%clk 0:03:01]} 2. Nf3 {[%clk 0:03:02.4]} 2...
g6 {[%clk 0:03:01.1]} 3. d4 {[%clk 0:03:04.3]} 3... cxd4 {[%clk 0:03:02.6]} 4.
Nxd4 {[%clk 0:03:06.2]} 4... Bg7 {[%clk 0:03:03.2]} 5. Nc3 {[%clk 0:03:07.7]}
5... Nc6 {[%clk 0:03:04.3]} 6. Be3 {[%clk 0:03:08.9]} 6... Nf6 {[%clk
0:03:04.5]} 7. Bc4 {[%clk 0:03:09.7]} 7... O-O {[%clk 0:03:03.4]} 8. Bb3 {[%clk
0:03:10.6]} 8... d5 {[%clk 0:03:02.7]} 9. exd5 {[%clk 0:03:10.4]} 9... Na5
{[%clk 0:03:04.1]} 10. Nde2 {[%clk 0:03:08.8]} 10... b6 {[%clk 0:02:48.9]} 11.
Qd2 {[%clk 0:03:04.2]} 11... Bb7 {[%clk 0:02:50]} 12. Rd1 {[%clk 0:03:02.2]}
12... Nxb3 {[%clk 0:02:28.1]} 13. axb3 {[%clk 0:03:01.7]} 13... Qd7 {[%clk
0:02:30]} 14. O-O {[%clk 0:03:00.7]} 14... Rfd8 {[%clk 0:02:31.1]} 15. Nf4
{[%clk 0:02:56.4]} 15... h6 {[%clk 0:02:23.2]} 16. Bd4 {[%clk 0:02:34.3]} 16...
Rac8 {[%clk 0:02:10.7]} 17. Rfe1 {[%clk 0:02:28.7]} 17... g5 {[%clk 0:02:10.6]}
18. Bxf6 {[%clk 0:02:10.8]} 18... Bxf6 {[%clk 0:02:11.4]} 19. Nfe2 {[%clk
0:02:06.6]} 19... Rc5 {[%clk 0:02:02.6]} 20. b4 {[%clk 0:02:03.6]} 20... Rc4
{[%clk 0:02:00.9]} 21. b3 {[%clk 0:02:02.5]} 21... Rxb4 {[%clk 0:01:55.2]} 22.
Ng3 {[%clk 0:01:44.7]} 22... Rd4 {[%clk 0:01:46.6]} 23. Qe3 {[%clk 0:01:39.1]}
23... Rxd1 {[%clk 0:01:23.9]} 24. Rxd1 {[%clk 0:01:41]} 24... Qg4 {[%clk
0:00:55.3]} 25. h3 {[%clk 0:01:28.2]} 25... Qb4 {[%clk 0:00:40.4]} 26. Nce4
{[%clk 0:01:21.8]} 26... Rxd5 {[%clk 0:00:26.5]} 27. Nxf6+ {[%clk 0:01:21]}
27... exf6 {[%clk 0:00:24.8]} 28. Rxd5 {[%clk 0:01:19.9]} 28... Bxd5 {[%clk
0:00:25.8]} 29. Nh5 {[%clk 0:01:16.9]} 29... Qd6 {[%clk 0:00:20]} 30. Qd4 {[%clk
0:01:17.8]} 30... Qc5 {[%clk 0:00:11.1]} 31. Qxd5 {[%clk 0:01:17.6]} 31... Qxd5
{[%clk 0:00:04.7]} 32. Nxf6+ {[%clk 0:01:18.1]} 32... Kg7 {[%clk 0:00:06.6]} 33.
Nxd5 {[%clk 0:01:20]} 33... f5 {[%clk 0:00:07.6]} 34. f4 {[%clk 0:01:20.6]} 1-0

[Event "*** Titled Tuesday Blitz"]
[Site "Chess.com"]
[Date "2019.02.05"]
[Round "4"]
[White "ajkom197"]
[Black "BillForster"]
[Result "1-0"]
[WhiteElo "2427"]
[BlackElo "1711"]
[TimeControl "180+2"]
[EndTime "13:48:44 PST"]
[Termination "ajkom197 won by resignation"]

1. c4 {[%clk 0:03:01.9]} 1... c6 {[%clk 0:02:59.6]} 2. Nc3 {[%clk 0:03:02.1]}
2... d5 {[%clk 0:02:57.3]} 3. e3 {[%clk 0:03:02.5]} 3... Nf6 {[%clk 0:02:53.5]}
4. Nf3 {[%clk 0:03:00.4]} 4... e6 {[%clk 0:02:47.6]} 5. d4 {[%clk 0:02:57]} 5...
Nbd7 {[%clk 0:02:43.1]} 6. cxd5 {[%clk 0:02:51.6]} 6... exd5 {[%clk 0:02:42.5]}
7. Bd3 {[%clk 0:02:50.5]} 7... Bd6 {[%clk 0:02:27.2]} 8. O-O {[%clk 0:02:50.2]}
8... O-O {[%clk 0:02:23.5]} 9. e4 {[%clk 0:02:49.7]} 9... dxe4 {[%clk
0:02:18.1]} 10. Nxe4 {[%clk 0:02:51.6]} 10... Nxe4 {[%clk 0:02:16.2]} 11. Bxe4
{[%clk 0:02:53.5]} 11... Qc7 {[%clk 0:01:58.5]} 12. h3 {[%clk 0:02:43.7]} 12...
Nf6 {[%clk 0:01:56.6]} 13. Bc2 {[%clk 0:02:42.6]} 13... Bd7 {[%clk 0:01:42.8]}
14. Qd3 {[%clk 0:02:30.6]} 14... Rfe8 {[%clk 0:01:30.2]} 15. Bg5 {[%clk
0:02:23.5]} 15... Ne4 {[%clk 0:01:24.9]} 16. Rfe1 {[%clk 0:02:19.4]} 16... Bf5
{[%clk 0:01:23.2]} 17. Ne5 {[%clk 0:01:45.4]} 17... Bxe5 {[%clk 0:01:06.2]} 18.
dxe5 {[%clk 0:01:44.7]} 18... Qxe5 {[%clk 0:00:44.4]} 19. Qe3 {[%clk 0:01:42.9]}
19... Bg6 {[%clk 0:00:23.2]} 20. Bf4 {[%clk 0:01:31.7]} 20... Qc5 {[%clk
0:00:20.2]} 21. Bb3 {[%clk 0:01:12.8]} 21... Qxe3 {[%clk 0:00:19.8]} 22. Rxe3
{[%clk 0:01:12.2]} 22... Nf6 {[%clk 0:00:12.8]} 23. Rae1 {[%clk 0:01:10.7]}
23... Rad8 {[%clk 0:00:12.2]} 24. Bg5 {[%clk 0:01:08.2]} 24... Rxe3 {[%clk
0:00:11.9]} 25. Rxe3 {[%clk 0:01:09.1]} 25... Rd6 {[%clk 0:00:09.8]} 26. Re7
{[%clk 0:00:59.3]} 26... h6 {[%clk 0:00:09.4]} 27. Bf4 {[%clk 0:00:55.3]} 27...
Nd5 {[%clk 0:00:07.8]} 28. Bxd6 {[%clk 0:00:54.1]} 28... Nxe7 {[%clk 0:00:06.7]}
29. Bxe7 {[%clk 0:00:56]} 1-0

[Event "*** Titled Tuesday Blitz"]
[Site "Chess.com"]
[Date "2019.02.05"]
[Round "4"]
[White "GHANDEEVAM2003"]
[Black "RojonR"]
[Result "0-1"]
[WhiteElo "2836"]
[BlackElo "2504"]
[TimeControl "180+2"]
[EndTime "13:48:48 PST"]
[Termination "RojonR won by checkmate"]

1. d4 {[%clk 0:03:01.9]} 1... Nf6 {[%clk 0:03:00.4]} 2. c4 {[%clk 0:02:52.4]}
2... e6 {[%clk 0:02:59.4]} 3. g3 {[%clk 0:02:53.7]} 3... Bb4+ {[%clk 0:02:59.7]}
4. Bd2 {[%clk 0:02:54]} 4... Qe7 {[%clk 0:03:00.8]} 5. Bg2 {[%clk 0:02:55]} 5...
Bxd2+ {[%clk 0:03:01.9]} 6. Qxd2 {[%clk 0:02:56.9]} 6... Nc6 {[%clk 0:03:01.2]}
7. Nc3 {[%clk 0:02:54.9]} 7... O-O {[%clk 0:02:59.3]} 8. Nf3 {[%clk 0:02:53.6]}
8... d5 {[%clk 0:02:58.4]} 9. Ne5 {[%clk 0:02:48.8]} 9... dxc4 {[%clk
0:02:59.3]} 10. Nxc4 {[%clk 0:02:42.8]} 10... Rd8 {[%clk 0:02:58.5]} 11. e3
{[%clk 0:02:42.3]} 11... e5 {[%clk 0:02:55.7]} 12. d5 {[%clk 0:02:42.8]} 12...
e4 {[%clk 0:02:32.1]} 13. O-O {[%clk 0:02:33]} 13... b5 {[%clk 0:02:25.2]} 14.
dxc6 {[%clk 0:02:19.4]} 14... Rxd2 {[%clk 0:02:24.3]} 15. Nxd2 {[%clk
0:02:21.3]} 15... Bf5 {[%clk 0:02:16.5]} 16. Nxb5 {[%clk 0:02:22.1]} 16... Rb8
{[%clk 0:02:05.7]} 17. Nd4 {[%clk 0:02:22]} 17... Bg4 {[%clk 0:01:57.1]} 18. Nc4
{[%clk 0:02:17.8]} 18... h5 {[%clk 0:01:50.1]} 19. b3 {[%clk 0:02:16.6]} 19...
h4 {[%clk 0:01:49.4]} 20. h3 {[%clk 0:02:17.8]} 20... Be6 {[%clk 0:01:43.1]} 21.
Nd2 {[%clk 0:02:16.3]} 21... hxg3 {[%clk 0:01:21.5]} 22. fxg3 {[%clk 0:02:18.2]}
22... Qd6 {[%clk 0:01:21.4]} 23. Rf4 {[%clk 0:02:19]} 23... Nd5 {[%clk 0:01:16]}
24. Nc4 {[%clk 0:02:15.6]} 24... Qb4 {[%clk 0:00:50.9]} 25. Rxe4 {[%clk
0:02:16.7]} 25... Nc3 {[%clk 0:00:51.3]} 26. Rxe6 {[%clk 0:02:09.5]} 26... fxe6
{[%clk 0:00:50.2]} 27. Nxe6 {[%clk 0:02:11.4]} 27... Ne2+ {[%clk 0:00:39.7]} 28.
Kh2 {[%clk 0:02:09.3]} 28... Qe7 {[%clk 0:00:33.5]} 29. Bd5 {[%clk 0:02:09.7]}
29... Nc3 {[%clk 0:00:33]} 30. Nxc7+ {[%clk 0:02:07.5]} 30... Nxd5 {[%clk
0:00:22.5]} 31. Nxd5 {[%clk 0:02:09.4]} 31... Qe4 {[%clk 0:00:23.3]} 32. c7
{[%clk 0:01:59]} 32... Rf8 {[%clk 0:00:23.5]} 33. Rf1 {[%clk 0:01:49.3]} 33...
Rxf1 {[%clk 0:00:18.4]} 34. c8=Q+ {[%clk 0:01:48.3]} 34... Kh7 {[%clk
0:00:19.4]} 35. g4 {[%clk 0:01:38.1]} 35... Qc2+ {[%clk 0:00:14.7]} 36. Kg3
{[%clk 0:01:36]} 36... Qf2# {[%clk 0:00:15.6]} 0-1

[Event "*** Titled Tuesday Blitz"]
[Site "Chess.com"]
[Date "2019.02.05"]
[Round "4"]
[White "kleinebeer98"]
[Black "murmah2003"]
[Result "1-0"]
[WhiteElo "2703"]
[BlackElo "2659"]
[TimeControl "180+2"]
[EndTime "13:48:49 PST"]
[Termination "kleinebeer98 won on time"]

1. e4 {[%clk 0:03:01.9]} 1... Nf6 {[%clk 0:02:55.2]} 2. Nc3 {[%clk 0:03:01.8]}
2... d5 {[%clk 0:02:55.9]} 3. exd5 {[%clk 0:03:02.8]} 3... Nxd5 {[%clk 0:02:57]}
4. Qf3 {[%clk 0:03:02.4]} 4... Nf6 {[%clk 0:02:46.5]} 5. Bb5+ {[%clk 0:02:55.9]}
5... c6 {[%clk 0:02:46.4]} 6. Bc4 {[%clk 0:02:56.7]} 6... Bg4 {[%clk 0:02:46.7]}
7. Qg3 {[%clk 0:02:55.4]} 7... e6 {[%clk 0:02:45.2]} 8. h3 {[%clk 0:02:53.9]}
8... Bd6 {[%clk 0:02:46.6]} 9. Qh4 {[%clk 0:02:51.8]} 9... Bf5 {[%clk 0:02:44]}
10. d3 {[%clk 0:02:48.9]} 10... Nbd7 {[%clk 0:02:34.3]} 11. Nf3 {[%clk
0:02:37.9]} 11... h6 {[%clk 0:02:22.9]} 12. a4 {[%clk 0:02:30.6]} 12... Qc7
{[%clk 0:02:04.2]} 13. Qd4 {[%clk 0:02:06.5]} 13... Bh7 {[%clk 0:01:39.2]} 14.
O-O {[%clk 0:02:03.5]} 14... O-O {[%clk 0:01:19]} 15. Qh4 {[%clk 0:02:00]} 15...
Qa5 {[%clk 0:00:55.3]} 16. Re1 {[%clk 0:01:39]} 16... Bg6 {[%clk 0:00:46.6]} 17.
Bf4 {[%clk 0:01:33.1]} 17... Be7 {[%clk 0:00:34.8]} 18. Ne5 {[%clk 0:01:27.7]}
18... Nxe5 {[%clk 0:00:18.4]} 19. Rxe5 {[%clk 0:01:26.9]} 19... Qd8 {[%clk
0:00:19.7]} 20. Qg3 {[%clk 0:01:11.2]} 20... Bd6 {[%clk 0:00:12.8]} 21. Qf3
{[%clk 0:01:10.6]} 21... Bxe5 {[%clk 0:00:11.1]} 22. Bxe5 {[%clk 0:01:12.5]}
22... Nd5 {[%clk 0:00:12.6]} 23. Ne4 {[%clk 0:01:10.6]} 23... f6 {[%clk
0:00:12.3]} 24. Bh2 {[%clk 0:01:06.2]} 24... Re8 {[%clk 0:00:13.5]} 25. Re1
{[%clk 0:01:05.4]} 25... e5 {[%clk 0:00:11.7]} 26. Ng3 {[%clk 0:01:01]} 26...
Qd7 {[%clk 0:00:11.9]} 27. h4 {[%clk 0:01:01.4]} 27... Bf7 {[%clk 0:00:10.7]}
28. Nf5 {[%clk 0:01:02.2]} 28... Nf4 {[%clk 0:00:07.5]} 29. Qg4 {[%clk
0:00:58.9]} 1-0

[Event "*** Titled Tuesday Blitz"]
[Site "Chess.com"]
[Date "2019.02.05"]
[Round "4"]
[White "riconaipe"]
[Black "valeriocarnicelli"]
[Result "0-1"]
[WhiteElo "2444"]
[BlackElo "2447"]
[TimeControl "180+2"]
[EndTime "13:48:53 PST"]
[Termination "valeriocarnicelli won on time"]

1. d4 {[%clk 0:03:01.9]} 1... d5 {[%clk 0:03:00.6]} 2. c4 {[%clk 0:03:01.8]}
2... c6 {[%clk 0:03:01.9]} 3. Nf3 {[%clk 0:03:02]} 3... Nf6 {[%clk 0:03:03]} 4.
Nc3 {[%clk 0:03:03.1]} 4... dxc4 {[%clk 0:03:04.2]} 5. a4 {[%clk 0:03:03.8]}
5... Bf5 {[%clk 0:03:04.4]} 6. Ne5 {[%clk 0:03:04.8]} 6... Nbd7 {[%clk
0:03:05.1]} 7. Nxc4 {[%clk 0:03:06.2]} 7... Qc7 {[%clk 0:03:06.1]} 8. g3 {[%clk
0:03:06.5]} 8... e5 {[%clk 0:03:06.9]} 9. dxe5 {[%clk 0:03:07.7]} 9... Nxe5
{[%clk 0:03:08.3]} 10. Bf4 {[%clk 0:03:09]} 10... Nfd7 {[%clk 0:03:09.7]} 11.
Bg2 {[%clk 0:03:09.9]} 11... f6 {[%clk 0:03:09.3]} 12. O-O {[%clk 0:03:09.1]}
12... Be6 {[%clk 0:03:10.5]} 13. Ne3 {[%clk 0:03:04.5]} 13... Bb4 {[%clk
0:03:02.5]} 14. Nc2 {[%clk 0:02:44.6]} 14... Bxc3 {[%clk 0:02:21.4]} 15. bxc3
{[%clk 0:02:44.9]} 15... O-O-O {[%clk 0:02:22.5]} 16. Nd4 {[%clk 0:02:45.7]}
16... Bf7 {[%clk 0:02:19.5]} 17. a5 {[%clk 0:02:45.7]} 17... g5 {[%clk
0:02:15.1]} 18. a6 {[%clk 0:02:31]} 18... gxf4 {[%clk 0:02:02.7]} 19. axb7+
{[%clk 0:02:31.8]} 19... Qxb7 {[%clk 0:02:00.1]} 20. gxf4 {[%clk 0:02:24.9]}
20... Rhg8 {[%clk 0:01:28.2]} 21. Nf5 {[%clk 0:02:07.8]} 21... Rxg2+ {[%clk
0:01:16.6]} 22. Kxg2 {[%clk 0:02:08.3]} 22... Bd5+ {[%clk 0:01:17.8]} 23. f3
{[%clk 0:02:06.1]} 23... Nc4 {[%clk 0:01:02.8]} 24. Qa4 {[%clk 0:01:48.7]} 24...
Rg8+ {[%clk 0:01:00.2]} 25. Kh1 {[%clk 0:01:48.3]} 25... Kb8 {[%clk 0:00:50]}
26. Rfb1 {[%clk 0:01:33.8]} 26... Ndb6 {[%clk 0:00:50.4]} 27. Qb4 {[%clk
0:01:27.7]} 27... c5 {[%clk 0:00:50]} 0-1

[Event "*** Titled Tuesday Blitz"]
[Site "Chess.com"]
[Date "2019.02.05"]
[Round "4"]
[White "HomayoonTofighi"]
[Black "GelmanAlexander"]
[Result "1-0"]
[WhiteElo "2733"]
[BlackElo "2503"]
[TimeControl "180+2"]
[EndTime "13:48:56 PST"]
[Termination "HomayoonTofighi won by resignation"]

1. e4 {[%clk 0:03:01.7]} 1... c5 {[%clk 0:02:59.1]} 2. Nf3 {[%clk 0:03:01.4]}
2... e6 {[%clk 0:03:00.2]} 3. c3 {[%clk 0:03:00.9]} 3... d5 {[%clk 0:03:01]} 4.
exd5 {[%clk 0:03:01.4]} 4... exd5 {[%clk 0:03:02.3]} 5. Bb5+ {[%clk 0:03:01.1]}
5... Nc6 {[%clk 0:03:03.2]} 6. O-O {[%clk 0:03:01.4]} 6... Nf6 {[%clk
0:03:04.5]} 7. d4 {[%clk 0:03:01.9]} 7... Be7 {[%clk 0:03:05.2]} 8. dxc5 {[%clk
0:03:02.2]} 8... Bxc5 {[%clk 0:03:06.4]} 9. Bg5 {[%clk 0:03:00.5]} 9... Be6
{[%clk 0:03:02.9]} 10. Nbd2 {[%clk 0:02:58.6]} 10... O-O {[%clk 0:03:02.6]} 11.
Nb3 {[%clk 0:02:57.1]} 11... Bb6 {[%clk 0:03:00.9]} 12. Nfd4 {[%clk 0:02:55.8]}
12... Bd7 {[%clk 0:02:55.7]} 13. Bd3 {[%clk 0:02:41.8]} 13... h6 {[%clk
0:02:55.5]} 14. Bh4 {[%clk 0:02:41.9]} 14... g5 {[%clk 0:02:50.2]} 15. Bg3
{[%clk 0:02:41.6]} 15... Ne4 {[%clk 0:02:51.5]} 16. Nxc6 {[%clk 0:02:25.1]}
16... bxc6 {[%clk 0:02:41.2]} 17. Bxe4 {[%clk 0:02:20.5]} 17... dxe4 {[%clk
0:02:42.1]} 18. Bd6 {[%clk 0:02:14]} 18... Re8 {[%clk 0:02:42.2]} 19. c4 {[%clk
0:02:10.9]} 19... e3 {[%clk 0:02:32.6]} 20. fxe3 {[%clk 0:02:05.7]} 20... Bxe3+
{[%clk 0:02:32.7]} 21. Kh1 {[%clk 0:02:07.2]} 21... Be6 {[%clk 0:02:08.7]} 22.
Qd3 {[%clk 0:02:04.1]} 22... f5 {[%clk 0:01:40.7]} 23. Rad1 {[%clk 0:01:57]}
23... Bb6 {[%clk 0:01:25.5]} 24. c5 {[%clk 0:01:52.6]} 24... Bc7 {[%clk
0:01:25.2]} 25. Rxf5 {[%clk 0:01:48.4]} 25... Bxd6 {[%clk 0:01:13]} 26. Rff1
{[%clk 0:01:21.4]} 26... Bf7 {[%clk 0:00:30.8]} 27. cxd6 {[%clk 0:01:18.8]}
27... Qd7 {[%clk 0:00:25.2]} 28. Nc5 {[%clk 0:01:19.4]} 28... Qg4 {[%clk
0:00:25.8]} 29. h3 {[%clk 0:01:14.9]} 29... Qc4 {[%clk 0:00:21.3]} 30. d7 {[%clk
0:01:15.3]} 30... Rf8 {[%clk 0:00:21.1]} 31. Nb7 {[%clk 0:01:02.4]} 31... Qxd3
{[%clk 0:00:21.6]} 32. Rxd3 {[%clk 0:01:04.3]} 32... Bc4 {[%clk 0:00:21.4]} 33.
Rxf8+ {[%clk 0:01:04.7]} 33... Rxf8 {[%clk 0:00:23.3]} 34. d8=Q {[%clk
0:01:06.4]} 1-0

[Event "*** Titled Tuesday Blitz"]
[Site "Chess.com"]
[Date "2019.02.05"]
[Round "4"]
[White "SimonKnightRivendell"]
[Black "HElissalt"]
[Result "0-1"]
[WhiteElo "1998"]
[BlackElo "2092"]
[TimeControl "180+2"]
[EndTime "13:48:57 PST"]
[Termination "HElissalt won by resignation"]

1. Nf3 {[%clk 0:03:00.1]} 1... Nf6 {[%clk 0:02:54.3]} 2. g3 {[%clk 0:03:01]}
2... b6 {[%clk 0:02:55]} 3. Bg2 {[%clk 0:03:01.9]} 3... Bb7 {[%clk 0:02:56.1]}
4. O-O {[%clk 0:03:02.7]} 4... g6 {[%clk 0:02:56.7]} 5. c4 {[%clk 0:03:02.9]}
5... c5 {[%clk 0:02:56.8]} 6. Nc3 {[%clk 0:03:03.6]} 6... Bg7 {[%clk 0:02:57.8]}
7. d4 {[%clk 0:03:04.2]} 7... cxd4 {[%clk 0:02:58.4]} 8. Nxd4 {[%clk 0:03:05.3]}
8... Bxg2 {[%clk 0:02:58.6]} 9. Kxg2 {[%clk 0:03:06.2]} 9... Qc8 {[%clk
0:02:59.7]} 10. Qd3 {[%clk 0:03:04]} 10... Nc6 {[%clk 0:02:59]} 11. Nxc6 {[%clk
0:03:01.2]} 11... Qxc6+ {[%clk 0:02:59.2]} 12. e4 {[%clk 0:03:00.9]} 12... O-O
{[%clk 0:02:58.5]} 13. Be3 {[%clk 0:02:54.7]} 13... Rac8 {[%clk 0:02:58.7]} 14.
b3 {[%clk 0:02:55.5]} 14... b5 {[%clk 0:02:45.4]} 15. cxb5 {[%clk 0:02:36.8]}
15... Qxc3 {[%clk 0:02:44.9]} 16. Qxc3 {[%clk 0:02:36.7]} 16... Rxc3 {[%clk
0:02:45]} 17. Bxa7 {[%clk 0:02:37.2]} 17... Nxe4 {[%clk 0:02:45.1]} 18. b6
{[%clk 0:02:37.8]} 18... Nd6 {[%clk 0:02:43]} 19. Rac1 {[%clk 0:02:37]} 19...
Rfc8 {[%clk 0:02:34.1]} 20. Rxc3 {[%clk 0:02:35.4]} 20... Rxc3 {[%clk
0:02:34.9]} 21. Rd1 {[%clk 0:02:35.2]} 21... Be5 {[%clk 0:02:20.2]} 22. b7
{[%clk 0:02:23.3]} 22... Nxb7 {[%clk 0:02:16.2]} 23. Rxd7 {[%clk 0:02:24.2]}
23... Rc7 {[%clk 0:02:10.6]} 24. Rd5 {[%clk 0:02:21.7]} 24... Bd6 {[%clk
0:02:10.9]} 25. Bd4 {[%clk 0:02:20.4]} 25... f6 {[%clk 0:02:09.9]} 26. a4 {[%clk
0:02:10.8]} 26... Nc5 {[%clk 0:02:07.2]} 27. Bxc5 {[%clk 0:02:03.1]} 27... Rxc5
{[%clk 0:02:03.9]} 28. Rd3 {[%clk 0:02:00.6]} 28... Ra5 {[%clk 0:01:57.3]} 29.
h4 {[%clk 0:01:57.2]} 29... Kf7 {[%clk 0:01:57.1]} 30. Kf3 {[%clk 0:01:52.3]}
30... Rf5+ {[%clk 0:01:49.2]} 31. Ke2 {[%clk 0:01:53]} 31... h5 {[%clk
0:01:32.7]} 32. f4 {[%clk 0:01:48.9]} 32... g5 {[%clk 0:01:30.3]} 33. hxg5
{[%clk 0:01:46.3]} 33... fxg5 {[%clk 0:01:31.2]} 34. Kf3 {[%clk 0:01:47.2]}
34... gxf4 {[%clk 0:01:31.7]} 35. gxf4 {[%clk 0:01:46.1]} 35... Rxf4+ {[%clk
0:01:32.4]} 36. Ke3 {[%clk 0:01:47.1]} 36... Rg4 {[%clk 0:01:29.8]} 37. Rd5
{[%clk 0:01:45]} 37... Rg3+ {[%clk 0:01:28.6]} 38. Kf2 {[%clk 0:01:41.7]} 38...
Rxb3 {[%clk 0:01:27.7]} 39. Rxh5 {[%clk 0:01:42.7]} 39... Ra3 {[%clk 0:01:28.7]}
40. a5 {[%clk 0:01:40.8]} 40... Bb4 {[%clk 0:01:29.3]} 41. Rh7+ {[%clk
0:01:32.9]} 41... Ke8 {[%clk 0:01:26.5]} 42. Rh8+ {[%clk 0:01:32.3]} 42... Kd7
{[%clk 0:01:27.1]} 43. Rb8 {[%clk 0:01:28.6]} 43... Bxa5 {[%clk 0:01:27.5]} 44.
Ke2 {[%clk 0:01:25.5]} 44... Bc7 {[%clk 0:01:25.6]} 45. Rb5 {[%clk 0:01:25.2]}
45... Bd6 {[%clk 0:01:24.1]} 46. Rh5 {[%clk 0:01:25.6]} 46... e5 {[%clk
0:01:23]} 47. Kd2 {[%clk 0:01:26.3]} 47... Kc6 {[%clk 0:01:24.1]} 48. Ke2 {[%clk
0:01:27.5]} 48... Kd5 {[%clk 0:01:25.1]} 49. Kd2 {[%clk 0:01:28.6]} 49... Bc5
{[%clk 0:01:25.5]} 50. Ke2 {[%clk 0:01:28.4]} 50... Kd4 {[%clk 0:01:24.3]} 51.
Rh7 {[%clk 0:01:28.3]} 51... e4 {[%clk 0:01:24.6]} 52. Rd7+ {[%clk 0:01:28.5]}
52... Kc4 {[%clk 0:01:25.6]} 53. Re7 {[%clk 0:01:29.2]} 53... Ra2+ {[%clk
0:01:26.1]} 54. Kd1 {[%clk 0:01:28.6]} 54... Kd3 {[%clk 0:01:27.2]} 55. Rd7+
{[%clk 0:01:28.4]} 55... Bd4 {[%clk 0:01:28.3]} 56. Rc7 {[%clk 0:01:24.3]} 56...
Ra1+ {[%clk 0:01:28.3]} 57. Rc1 {[%clk 0:01:25]} 57... Rxc1+ {[%clk 0:01:29.1]}
58. Kxc1 {[%clk 0:01:26.1]} 58... Ke2 {[%clk 0:01:30.1]} 0-1